bitfinex/quotes_ETHUSD_20241001
["timestamp","ask_amount","ask_price","bid_price","bid_amount"]
[1727812645149,19.53,2496.8,2496.5,4.80654]
[1727812645320,0.7606,2496.9,2496.5,4.80654]
[1727812645321,20.2906,2496.9,2496.5,4.80654]
[1727812645725,19.53,2496.8,2496.0,0.7695]
[1727812646044,19.53,2496.8,2495.4,4.80883]
[1727812646045,4.80695,2496.4,2495.7,5.57763]
[1727812646248,9.61406,2496.4,2495.8,4.80792]
[1727812646452,9.61406,2496.4,2495.7,4.80812]
[1727812646453,4.80695,2496.4,2495.7,4.80812]
[1727812646651,4.80695,2496.4,2495.9,4.80787]
[1727812646854,4.80695,2496.4,2495.8,4.80805]
[1727812647055,0.562005,2496.3,2495.9,4.80786]
[1727812647361,19.53,2496.4,2495.9,4.80786]
[1727812647559,4.80724,2496.3,2495.7,9.61632]
[1727812647724,24.33693,2496.4,2495.8,4.80805]
[1727812647923,24.33693,2496.4,2495.5,0.8906553]
[1727812647924,6.14516,2495.6,2495.5,0.1211553]
[1727812648165,1.3367,2495.6,2495.5,0.1211553]
[1727812648361,6.14516,2495.6,2495.5,0.1211553]
[1727812648522,1.3367,2495.6,2495.5,0.1211553]
[1727812648872,0.7867,2495.6,2495.5,0.1211553]
[1727812649081,1.346198,2495.6,2495.5,0.1211553]
[1727812649228,6.704658,2495.6,2495.5,0.1211553]
[1727812649770,6.744958,2495.6,2495.5,0.1211553]
[1727812651238,26.274958,2495.6,2495.5,0.1211553]
[1727812653332,21.466498,2495.6,2495.5,0.1211553]
[1727812653532,20.907,2495.6,2495.5,0.1211553]
[1727812654244,25.71546,2495.6,2495.5,0.1211553]
[1727812654564,20.357,2495.6,2495.5,0.1211553]
[1727812655676,19.5703,2495.6,2495.5,4.9298053]
[1727812655842,19.5703,2495.6,2495.5,0.1211553]
[1727812656943,21.6125064,2495.6,2495.5,0.1211553]
[1727812657142,26.9709664,2495.6,2495.5,0.1211553]
[1727812659895,26.9709664,2495.6,2493.8,4.81187]
[1727812659896,0.55,2495.1,2493.3,0.7935]
[1727812660182,0.55,2495.1,2494.0,4.81151]
[1727812660183,0.8066,2494.3,2494.0,4.81151]
[1727812660355,19.4774365,2494.2,2494.0,4.81151]
[1727812660778,19.4774365,2494.2,2494.0,4.81145]
[1727812660980,19.4774365,2494.2,2494.0,4.81144]
[1727812661195,19.4774365,2494.2,2494.1,4.81135]
[1727812661872,19.4774365,2494.2,2494.0,4.8114]
[1727812662342,19.4774365,2494.2,2494.1,4.81135]
[1727812662545,7.38,2494.9,2494.3,4.81078]
[1727812662546,19.4774365,2494.9,2494.3,4.81078]
[1727812662743,19.4774365,2494.8,2494.4,4.81076]
[1727812663281,19.4774365,2494.8,2494.5,4.81052]
[1727812663848,19.4774365,2494.8,2494.4,4.81068]
[1727812664048,19.4774365,2494.8,2494.5,4.81047]
[1727812664357,19.4774365,2494.8,2494.5,4.81049]
[1727812664556,19.4774365,2494.8,2494.6,4.81038]
[1727812664755,19.4774365,2494.8,2494.4,4.81068]
[1727812664962,19.4774365,2494.8,2494.5,4.81048]
[1727812665858,19.4774365,2494.8,2494.4,5.63597]
[1727812666178,19.4774365,2494.7,2494.4,5.63597]
[1727812666379,19.4774365,2494.7,2494.3,4.81095]
[1727812666580,24.2877265,2494.7,2494.2,4.81104]
[1727812666791,19.4774365,2494.7,2494.2,4.81104]
[1727812667489,24.2876365,2494.7,2494.3,4.81094]
[1727812667690,24.2876365,2494.7,2494.2,4.81104]
[1727812667691,19.4774365,2494.7,2494.2,4.81104]
[1727812667847,19.4774365,2494.7,2494.4,4.81075]
[1727812668286,24.2876565,2494.7,2494.2,4.81104]
[1727812668513,19.4774365,2494.7,2494.3,4.81085]
[1727812668784,19.4774365,2494.6,2494.2,4.81101]
[1727812669147,19.4774365,2494.6,2494.1,5.61129]
[1727812669388,19.4774365,2494.6,2494.2,4.81103]
[1727812669588,24.2878265,2494.6,2493.9,5.57528]
[1727812669749,0.7853,2494.5,2494.1,4.81134]
[1727812670151,0.7853,2494.5,2494.2,4.8111]
[1727812670750,0.7853,2494.5,2494.1,4.81134]
[1727812670954,0.7853,2494.5,2494.1,4.81127]
[1727812671177,0.7853,2494.5,2494.1,9.62251]
[1727812671783,8.73126605,2494.5,2494.0,4.81152]
[1727812671957,19.4774365,2494.4,2494.1,4.81131]
[1727812672156,8.73126605,2494.5,2494.1,4.81131]
[1727812672157,19.4774365,2494.3,2494.1,4.81131]
[1727812672391,19.4774365,2494.3,2494.1,4.81126]
[1727812672759,19.4774365,2494.3,2494.1,9.6225]
[1727812672983,19.4774365,2494.3,2493.9,4.81156]
[1727812673296,19.4774365,2494.3,2494.0,4.81137]
[1727812673596,19.4774365,2494.3,2494.1,4.81121]
[1727812673957,19.4774365,2494.3,2494.2,4.81116]
[1727812677409,19.4774365,2494.9,2494.8,4.81]
[1727812677562,19.4774365,2495.2,2495.1,4.80942]
[1727812677780,5.33298048,2496.2,2494.8,5.5662]
[1727812677781,0.8111,2495.9,2495.3,4.80889]
[1727812678101,4.80865,2495.5,2495.0,4.8096]
[1727812678274,4.80842,2495.7,2495.1,4.80937]
[1727812678476,4.80863,2495.6,2495.1,4.80937]
[1727812678668,0.961705,2495.5,2495.1,4.80937]
[1727812678872,0.961705,2495.5,2495.1,4.80927]
[1727812679201,4.80842,2495.7,2495.1,4.80927]
[1727812679501,20.2885365,2495.9,2495.3,4.80891]
[1727812679674,20.2885365,2495.9,2494.8,0.7562]
[1727812679675,19.4774365,2495.8,2495.7,4.80827]
[1727812679871,19.4774365,2495.8,2495.4,0.8198]
[1727812680073,19.4774365,2495.8,2495.6,9.61671]
[1727812680287,19.4774365,2495.8,2495.7,4.80827]
[1727812680583,19.5177365,2495.8,2495.7,4.80827]
[1727812681795,19.5177365,2495.8,2495.6,4.80835]
[1727812682004,19.5177365,2495.8,2495.6,9.61671]
[1727812682303,19.5177365,2495.8,2495.6,4.80835]
[1727812682716,19.5177365,2495.8,2495.7,4.80827]
[1727812682998,19.5177365,2495.8,2495.6,4.80835]
[1727812683202,19.5177365,2495.8,2495.4,5.62851]
[1727812683391,22.22161015,2495.8,2495.2,4.80908]
[1727812683590,22.22161015,2495.8,2495.4,4.80874]
[1727812683772,19.4774365,2495.7,2495.3,4.80894]
[1727812683969,19.4774365,2495.7,2495.1,0.7791]
[1727812683970,19.4774365,2495.7,2495.4,4.80867]
[1727812684260,21.69959752,2495.7,2495.4,9.61735]
[1727812684466,19.4774365,2495.7,2495.6,4.80846]
[1727812685325,19.4774365,2495.7,2495.4,4.80875]
[1727812685668,19.4774365,2495.7,2495.5,4.80863]
[1727812686002,19.4774365,2495.7,2495.6,4.80846]
[1727812686303,19.4774365,2495.7,2495.6,5.58986]
[1727812686694,0.0403,2495.8,2495.7,4.80827]
[1727812687904,0.0403,2495.8,2495.7,4.88822573]
[1727812688472,0.0403,2495.8,2495.7,4.80827]
[1727812692218,0.0403,2495.8,2495.6,5.58986]
[1727812692219,0.0403,2495.8,2495.6,4.80837]
[1727812693018,0.0403,2495.8,2495.4,4.80878]
[1727812693019,0.0403,2495.8,2495.7,4.80827]
[1727812694126,0.0403,2495.8,2495.6,4.80844]
[1727812694534,0.0403,2495.8,2495.7,4.80827]
[1727812694689,0.0403,2495.8,2495.6,4.80844]
[1727812694690,0.0403,2495.8,2495.6,9.61678]
[1727812695026,0.0403,2495.8,2495.7,4.80827]
[1727812696331,0.8401,2495.8,2495.5,4.80864]
[1727812696499,0.0403,2495.8,2495.5,4.80853]
[1727812696704,0.0403,2495.8,2495.3,0.7567]
[1727812696705,0.0403,2495.8,2495.7,4.80827]
[1727812698147,0.0403,2495.8,2495.7,5.60957]
[1727812698942,0.0403,2495.8,2495.7,4.80827]
[1727812700936,0.0403,2495.8,2495.6,4.80842]
[1727812701097,0.0403,2495.8,2495.6,9.6168]
[1727812701296,0.0403,2495.8,2495.4,4.80876]
[1727812701297,0.8101,2495.8,2495.4,4.80876]
[1727812701521,0.0403,2495.8,2495.7,4.80827]
[1727812703545,0.0403,2495.8,2495.6,4.80837]
[1727812704039,0.0403,2495.8,2495.6,4.80836]
[1727812704415,0.0403,2495.8,2495.4,4.80869]
[1727812704416,0.0403,2495.8,2495.5,4.80863]
[1727812704748,0.0403,2495.8,2495.5,4.80865]
[1727812704749,0.805,2495.7,2495.5,4.80865]
[1727812705101,20.2824365,2495.7,2495.1,0.8162]
[1727812705302,26.31828015,2495.6,2495.1,4.80934]
[1727812705545,26.31828015,2495.6,2495.0,4.80959]
[1727812705546,4.80868,2495.5,2495.0,4.80959]
[1727812705730,4.80885,2495.4,2494.7,4.81004]
[1727812705928,21.50971015,2495.6,2494.7,4.81004]
[1727812705929,0.7535,2495.2,2494.7,4.81004]
[1727812706144,4.80945,2495.1,2494.7,4.81004]
[1727812706305,4.80945,2495.1,2494.6,4.81037]
[1727812706504,4.80945,2495.1,2494.7,4.81019]
[1727812706901,19.4774365,2495.0,2494.6,4.81019]
[1727812707129,2.42868865,2494.9,2494.6,4.81029]
[1727812707347,21.90612515,2494.9,2494.6,4.81028]
[1727812708052,21.90612515,2494.9,2494.7,4.8101]
[1727812708346,21.90612515,2494.9,2494.6,4.81028]
[1727812708648,21.90612515,2494.9,2494.7,4.8101]
[1727812708948,19.4774365,2494.9,2494.7,4.81003]
[1727812709521,19.4774365,2494.9,2494.6,4.81028]
[1727812709856,19.4774365,2494.9,2494.7,4.81018]
[1727812710222,21.42518015,2494.9,2494.6,4.81025]
[1727812710430,1.94774365,2494.9,2494.6,4.81025]
[1727812710831,19.4774365,2495.1,2494.7,4.81009]
[1727812711068,19.4774365,2495.1,2494.6,4.81025]
[1727812711069,24.2869465,2495.1,2494.6,4.81025]
[1727812711357,19.4774365,2495.1,2494.7,4.81017]
[1727812711656,24.2869765,2495.1,2494.7,4.81018]
[1727812711865,19.4774365,2495.1,2494.7,4.81018]
[1727812712896,24.2869765,2495.1,2494.7,4.81016]
[1727812713166,24.2869765,2495.1,2494.6,4.81025]
[1727812713167,7.31366765,2495.0,2494.6,4.81025]
[1727812713320,7.31366765,2495.0,2494.4,4.81074]
[1727812713321,2.50404765,2495.0,2494.4,4.81074]
[1727812713522,2.50404765,2495.0,2494.5,4.81056]
[1727812713746,2.50404765,2495.0,2494.6,4.81036]
[1727812714450,19.4774365,2495.1,2494.7,4.81018]
[1727812714652,19.4774365,2495.1,2494.6,5.09364614]
[1727812714820,19.4774365,2495.1,2495.0,4.80961]
[1727812716173,19.4774365,2495.1,2494.9,4.80977]
[1727812716382,19.4774365,2495.0,2494.7,9.62018]
[1727812716689,19.4774365,2495.0,2494.8,4.80985]
[1727812717141,19.4774365,2495.0,2494.7,4.81009]
[1727812717549,19.4774365,2495.0,2494.8,4.80995]
[1727812717872,19.4774365,2495.0,2494.7,4.81001]
[1727812718381,19.4774365,2495.0,2494.9,4.80981]
[1727812718850,19.4774365,2495.0,2494.8,4.80987]
[1727812719047,19.4774365,2495.0,2494.7,4.81018]
[1727812719242,0.7739,2494.9,2494.6,4.81035]
[1727812719441,9.92471614,2494.9,2494.4,4.81073]
[1727812719640,4.81021,2494.7,2494.2,4.811]
[1727812719865,6.5526321,2494.6,2494.2,4.811]
[1727812720063,0.7739,2494.5,2494.1,4.81132]
[1727812720337,19.4774365,2494.4,2494.1,4.81132]
[1727812720584,19.4774365,2494.4,2494.0,4.81144]
[1727812720813,19.4774365,2494.4,2493.9,4.81158]
[1727812720814,19.4774365,2494.3,2493.9,4.81158]
[1727812721117,2.42883365,2494.2,2493.9,4.81158]
[1727812721303,2.42883365,2494.2,2493.8,4.81192]
[1727812721621,0.8145,2494.1,2493.8,4.81192]
[1727812721995,0.8145,2494.1,2493.9,4.81163]
[1727812722543,0.8145,2494.1,2493.9,9.62326]
[1727812723131,21.84312015,2494.1,2493.8,4.81193]
[1727812723330,19.4774365,2494.0,2493.7,4.812]
[1727812723629,19.4774365,2493.9,2493.5,4.81236]
[1727812723831,19.4774365,2493.9,2493.7,4.81203]
[1727812724017,19.4774365,2493.9,2493.7,9.62406]
[1727812724228,19.4774365,2493.9,2493.7,4.81202]
[1727812724430,19.4774365,2493.9,2493.8,4.81193]
[1727812725043,19.4774365,2493.9,2493.2,4.81295]
[1727812725044,0.8286,2493.8,2493.2,4.81295]
[1727812725337,0.8286,2493.8,2493.3,4.81284]
[1727812725338,19.4774365,2493.7,2493.3,4.81284]
[1727812725538,0.8278,2493.5,2493.0,0.1211553]
[1727812725697,2.03052365,2493.4,2493.0,4.9344753]
[1727812725895,4.81272,2493.4,2493.0,0.1211553]
[1727812726241,5.36328,2493.1,2493.0,0.1211553]
[1727812726410,30.94741276,2493.1,2493.0,0.1211553]
[1727812726824,25.6012165,2493.1,2493.0,0.1211553]
[1727812727533,30.94741276,2493.1,2493.0,0.1211553]
[1727812727740,37.48536014,2493.1,2493.0,0.1211553]
[1727812729160,4.81196,2493.8,2493.0,0.1211553]
[1727812729161,19.4774365,2493.3,2493.0,0.1211553]
[1727812729648,19.4774365,2493.3,2493.1,4.81327]
[1727812729846,0.8111,2493.5,2493.2,4.81298]
[1727812729997,5.62373,2493.5,2493.0,4.9346253]
[1727812730196,6.667328,2493.5,2493.0,0.1211553]
[1727812730437,10.43636,2493.5,2493.0,0.1211553]
[1727812730630,0.8111,2493.5,2493.0,0.1211553]
[1727812730938,5.62372,2493.5,2493.0,4.9344853]
[1727812731424,4.8127,2493.4,2493.0,0.1211553]
[1727812731735,1.043642,2493.4,2493.0,4.9346153]
[1727812732645,1.043642,2493.4,2493.0,0.1211553]
[1727812732805,5.856442,2493.4,2493.0,0.1211553]
[1727812733005,5.34619626,2493.2,2493.0,0.1211553]
[1727812733644,10.15931626,2493.2,2493.0,0.1211553]
[1727812733804,1.86213163,2493.1,2493.0,0.1211553]
[1727812734220,26.15284813,2493.1,2493.0,0.1211553]
[1727812734424,26.70284813,2493.1,2493.0,0.1211553]
[1727812735859,5.57676,2492.5,2492.0,4.8153]
[1727812736144,20.0351125,2492.4,2491.9,4.81544]
[1727812736447,20.0351125,2492.4,2492.2,4.81501]
[1727812736651,19.4774365,2492.4,2492.2,4.81501]
[1727812737026,19.4774365,2492.4,2492.1,9.63016]
[1727812737228,19.4774365,2492.4,2491.8,0.7545]
[1727812737521,19.4774365,2492.4,2492.1,4.81517]
[1727812737733,19.4694365,2492.4,2492.1,9.63027]
[1727812738115,19.4694365,2492.4,2492.2,4.81492]
[1727812738311,19.4694365,2492.4,2492.3,4.81482]
[1727812738530,19.4662365,2492.4,2492.3,5.56572]
[1727812738850,19.4622365,2492.4,2492.3,5.56572]
[1727812739253,19.4614365,2492.4,2492.3,5.56572]
[1727812739460,19.4558365,2492.4,2492.3,5.56572]
[1727812739618,19.4542365,2493.0,2492.6,4.81414]
[1727812739960,19.4542365,2492.9,2492.8,5.5643]
[1727812740275,19.4502365,2492.9,2492.8,5.5643]
[1727812740417,19.4470365,2492.9,2492.6,4.81409]
[1727812740614,19.4470365,2492.9,2492.7,4.81401]
[1727812740821,19.4873365,2492.9,2492.8,4.81386]
[1727812741128,19.4841365,2492.9,2492.8,4.81386]
[1727812741323,19.4825365,2492.9,2492.8,5.776647]
[1727812741534,19.4817365,2492.9,2492.8,0.962787]
[1727812741712,19.4793365,2492.9,2492.8,0.962787]
[1727812741915,19.4785365,2492.9,2492.8,5.776647]
[1727812742357,19.4777365,2492.9,2492.8,5.776647]
[1727812743054,0.0403,2492.9,2492.8,5.776647]
[1727812743255,0.0403,2492.9,2492.8,6.59640133]
[1727812743413,20.2424365,2494.3,2492.9,3.0]
[1727812743617,0.805,2494.3,2493.6,5.56278]
[1727812743863,19.4374365,2494.2,2493.8,4.81177]
[1727812744159,19.4374365,2494.2,2493.6,0.7506]
[1727812744160,19.4374365,2494.2,2494.0,4.81144]
[1727812744314,19.4374365,2494.2,2493.8,4.81187]
[1727812744717,19.4374365,2494.2,2493.6,0.7506]
[1727812745161,19.4374365,2494.2,2493.6,5.56291]
[1727812745162,21.86225915,2494.2,2493.6,5.56291]
[1727812745323,5.58646,2494.1,2493.5,9.62482]
[1727812745653,0.7751,2494.1,2493.6,4.8123]
[1727812745814,19.4374365,2494.0,2493.5,4.81238]
[1727812746015,22.18232042,2494.0,2493.5,4.81238]
[1727812746648,22.18232042,2494.0,2493.3,4.81277]
[1727812746649,4.81177,2493.9,2493.3,4.81277]
[1727812746868,32.34008668,2494.0,2493.4,4.81257]
[1727812747230,19.4374365,2494.0,2493.6,4.81218]
[1727812747436,2.42482265,2494.2,2493.7,0.08020534]
[1727812747437,19.4374365,2494.2,2493.7,0.08020534]
[1727812747778,19.4374365,2494.2,2494.1,4.81135]
[1727812747949,16.95993,2494.9,2494.3,4.81096]
[1727812747950,19.4374365,2494.4,2494.3,4.81096]
[1727812748630,21.38118015,2494.4,2493.8,5.58641]
[1727812748832,21.38118015,2494.4,2493.6,4.81218]
[1727812748833,0.7583,2494.3,2493.6,4.81218]
[1727812749138,4.81154,2494.1,2493.4,4.81259]
[1727812749366,4.81154,2494.1,2493.5,4.8124]
[1727812749534,4.81154,2494.1,2493.4,4.81259]
[1727812749535,0.7583,2493.8,2493.4,4.81259]
[1727812749870,19.4374365,2493.7,2493.2,4.813]
[1727812750070,2.95951728,2494.0,2492.9,4.81355]
[1727812750071,30.89868276,2493.6,2492.9,4.81354]
[1727812750385,30.89868276,2493.6,2492.4,5.58577]
[1727812750386,0.55,2493.4,2492.4,5.58577]
[1727812750679,19.4374365,2493.3,2492.9,4.81356]
[1727812750881,0.55,2493.4,2492.9,4.81356]
[1727812750882,19.4374365,2493.2,2492.9,4.81356]
[1727812751537,19.4374365,2493.2,2493.0,4.81345]
[1727812752074,19.4374365,2493.2,2493.1,4.81328]
[1727812753168,19.4374365,2493.2,2493.0,5.47072375]
[1727812753370,19.4374365,2493.2,2492.8,4.81375]
[1727812753607,19.4374365,2493.2,2492.9,4.81365]
[1727812753736,19.4374365,2493.2,2493.0,4.81341]
[1727812754136,19.4374365,2493.2,2492.9,4.81365]
[1727812754137,19.4374365,2493.2,2492.9,9.6272]
[1727812754340,19.4374365,2493.2,2493.0,4.81333]
[1727812754566,19.4374365,2493.2,2492.9,4.81355]
[1727812754781,19.4374365,2493.2,2492.7,4.81397]
[1727812755097,4.8136,2493.0,2492.5,4.81436]
[1727812755382,0.7862,2493.1,2492.5,4.81426]
[1727812755549,0.7862,2493.1,2492.7,4.81401]
[1727812755746,19.4374365,2493.4,2492.4,0.8184]
[1727812755945,19.4374365,2493.4,2493.1,4.81314]
[1727812756143,24.2501465,2493.4,2492.9,4.81357]
[1727812756340,4.81297,2493.3,2492.6,4.81421]
[1727812756577,4.81309,2493.2,2492.7,4.81386]
[1727812756801,19.4374365,2493.3,2492.8,4.81382]
[1727812756944,4.81309,2493.2,2492.8,4.81382]
[1727812757147,4.81309,2493.2,2492.6,4.81421]
[1727812757374,4.81309,2493.2,2492.7,4.81394]
[1727812757889,19.4799365,2493.3,2492.8,4.81384]
[1727812758062,4.81309,2493.2,2492.7,4.81404]
[1727812758747,19.4799365,2493.3,2492.9,4.81359]
[1727812758949,19.4799365,2493.3,2492.6,0.56325]
[1727812759150,24.2928365,2493.3,2492.8,4.81374]
[1727812759383,4.8131,2493.2,2492.7,4.81395]
[1727812759651,19.4799365,2493.3,2492.7,4.81395]
[1727812759652,22.46842115,2493.3,2492.7,4.81395]
[1727812759951,24.2929265,2493.3,2492.8,4.81382]
[1727812760373,19.4799365,2493.3,2492.9,4.81364]
[1727812760594,19.4799365,2493.3,2492.8,4.81386]
[1727812760979,19.4799365,2493.3,2492.9,4.8136]
[1727812760980,19.4374365,2493.2,2492.9,4.8136]
[1727812761163,19.4374365,2493.2,2492.8,4.81386]
[1727812761474,19.4374365,2493.2,2493.1,4.81328]
[1727812761659,0.0425,2493.3,2493.1,4.81328]
[1727812761863,0.0425,2493.3,2493.1,4.81326]
[1727812762196,0.0425,2493.3,2493.2,4.81309]
[1727812762390,0.0425,2493.3,2493.1,4.81316]
[1727812762870,0.0425,2493.3,2492.7,4.81388]
[1727812762871,5.56759,2493.2,2492.7,4.81388]
[1727812763079,5.56759,2493.2,2492.7,4.81396]
[1727812763080,0.7545,2493.2,2492.7,4.81396]
[1727812763263,5.5676,2493.2,2492.8,4.81381]
[1727812763585,0.7545,2493.2,2492.9,4.81355]
[1727812763807,0.0425,2493.3,2493.1,4.81317]
[1727812764294,0.0425,2493.3,2492.9,4.81357]
[1727812764450,0.0425,2493.3,2492.9,4.81356]
[1727812764786,0.0425,2493.3,2492.9,9.6271]
[1727812764995,0.0425,2493.3,2492.1,4.8151]
[1727812764996,0.8026,2492.9,2492.1,4.8151]
[1727812765289,19.4374365,2492.8,2491.8,0.8333]
[1727812765448,19.4374365,2492.8,2492.7,4.81405]
[1727812765646,19.4374365,2493.1,2492.8,4.81375]
[1727812766075,19.4374365,2493.1,2492.7,0.08022615]
[1727812766076,19.4374365,2493.1,2492.7,4.81405]
[1727812766293,0.0425,2493.3,2492.3,0.7776]
[1727812766588,19.4374365,2493.2,2492.7,4.81394]
[1727812767149,19.4374365,2493.2,2493.0,4.81346]
[1727812767349,0.0425,2493.3,2493.0,4.81346]
[1727812767549,0.0425,2493.3,2493.0,1.037922]
[1727812768284,0.0425,2493.3,2492.8,0.7521]
[1727812768285,0.0425,2493.3,2492.8,5.56592]
[1727812768487,0.0425,2493.3,2493.0,4.81338]
[1727812768665,0.0425,2493.3,2493.0,4.89359621]
[1727812768866,0.0425,2493.3,2492.8,5.56583]
[1727812769857,4.8131,2493.2,2492.5,4.81437]
[1727812770052,0.8236,2493.0,2492.5,4.81429]
[1727812770292,0.8236,2493.0,2492.3,4.81465]
[1727812770452,0.8236,2493.0,2492.4,5.64162]
[1727812770649,0.8236,2493.0,2492.6,4.81422]
[1727812771178,0.8236,2493.0,2492.5,4.8144]
[1727812771383,5.63707,2493.0,2492.5,5.860002]
[1727812771693,5.63709,2493.0,2492.5,1.045602]
[1727812771911,4.81381,2492.9,2492.4,0.8271]
[1727812772082,4.81381,2492.9,2492.2,4.81491]
[1727812772389,4.81381,2492.9,2491.7,7.81592]
[1727812772390,4.81424,2492.7,2492.0,4.81529]
[1727812772701,4.81424,2492.7,2492.3,4.81481]
[1727812772702,19.4374365,2492.7,2492.3,4.81481]
[1727812772865,5.59318,2492.6,2491.9,5.57582]
[1727812773069,4.81464,2492.4,2491.8,4.8156]
[1727812773618,4.81464,2492.4,2491.6,5.58945]
[1727812773619,4.81513,2492.2,2491.6,10.40551]
[1727812773923,24.2525665,2492.2,2491.7,4.81593]
[1727812774056,19.4374365,2492.2,2491.9,4.81547]
[1727812774252,19.4374365,2492.2,2492.0,0.48957248]
[1727812774455,19.4374365,2492.2,2492.1,4.81521]
[1727812774687,19.4374365,2492.5,2492.1,4.81521]
[1727812774889,19.4374365,2492.5,2491.8,4.81568]
[1727812775098,24.2520365,2492.5,2491.9,4.81551]
[1727812775300,24.2520065,2492.5,2492.0,4.81536]
[1727812775506,4.81474,2492.4,2491.9,5.778609]
[1727812776190,4.81474,2492.4,2492.0,4.81539]
[1727812776395,4.81474,2492.4,2491.9,5.778709]
[1727812776597,19.4374365,2492.5,2491.9,0.963119]
[1727812776805,4.81466,2492.4,2491.8,4.81564]
[1727812777011,4.81466,2492.4,2491.9,4.81558]
[1727812777209,4.81466,2492.4,2492.0,4.81534]
[1727812777380,4.81466,2492.4,2491.9,9.63108]
[1727812777583,19.4374365,2492.5,2491.6,0.7734]
[1727812777584,4.81499,2492.3,2491.7,4.81585]
[1727812777784,0.7994,2492.2,2491.7,4.81585]
[1727812777988,10.4296,2492.2,2491.6,4.81604]
[1727812778186,4.81551,2492.0,2491.5,4.81627]
[1727812778411,19.4374365,2492.1,2491.5,4.81627]
[1727812778820,4.81563,2491.9,2491.0,0.8249]
[1727812779119,19.4374365,2492.0,2491.7,4.81588]
[1727812779275,19.4374365,2491.9,2491.7,4.81588]
[1727812779714,19.4374365,2491.9,2491.8,4.81579]
[1727812780016,19.4374365,2491.9,2491.8,5.7869833]
[1727812781280,19.4374365,2491.9,2491.7,4.81588]
[1727812781922,19.4374365,2491.9,2491.5,5.59202]
[1727812781923,5.36582,2491.8,2491.2,4.81685]
[1727812782125,5.36582,2491.8,2491.1,4.81705]
[1727812782126,4.81619,2491.6,2491.1,4.81705]
[1727812782415,19.4374365,2491.5,2491.1,4.81705]
[1727812782612,19.4374365,2491.5,2491.1,10.679354]
[1727812782812,19.4374365,2491.5,2491.1,10.679344]
[1727812782973,19.4374365,2491.5,2491.2,4.81692]
[1727812783177,19.4374365,2491.5,2491.1,1.045284]
[1727812783373,24.2538265,2491.5,2491.1,1.045284]
[1727812783783,24.2538265,2491.5,2491.0,4.8172]
[1727812783983,24.2538265,2491.5,2491.0,9.63442]
[1727812784204,5.61973,2491.4,2490.8,4.81756]
[1727812784423,4.81687,2491.3,2490.8,9.63518]
[1727812784626,24.2543065,2491.3,2490.9,4.81753]
[1727812785142,24.2543065,2491.3,2490.8,4.81756]
[1727812785438,24.2545165,2491.2,2490.8,4.81772]
[1727812785809,24.2545165,2491.2,2490.5,0.1211553]
[1727812785996,24.2545165,2491.2,2490.6,4.81809]
[1727812785997,0.8072,2491.1,2490.6,4.81809]
[1727812786422,0.8072,2491.1,2490.6,4.81798]
[1727812786631,0.8072,2491.1,2490.7,4.81781]
[1727812786938,0.8072,2491.1,2490.7,4.81791]
[1727812787300,0.8072,2491.1,2490.8,4.8177]
[1727812787647,0.8072,2491.1,2490.9,4.81751]
[1727812787998,0.8072,2491.1,2490.6,0.49391353]
[1727812788335,0.8072,2491.1,2490.5,0.1211553]
[1727812788336,0.8115,2491.0,2490.5,0.1211553]
[1727812788546,5.62892,2491.0,2490.5,0.1211553]
[1727812788757,0.8115,2491.0,2490.5,0.20144993]
[1727812789049,0.8115,2491.3,2491.0,4.81722]
[1727812789203,4.81612,2491.7,2491.0,4.81722]
[1727812789204,0.8115,2491.7,2491.4,4.81645]
[1727812789399,0.8115,2491.7,2491.6,4.81618]
[1727812789601,4.81412,2492.7,2491.8,4.81573]
[1727812789602,0.8115,2492.7,2491.8,4.81573]
[1727812789836,2.08218913,2493.2,2491.8,4.81573]
[1727812789837,0.766,2493.2,2492.0,0.7747]
[1727812790155,5.57911,2493.2,2492.7,4.8139]
[1727812790297,0.766,2493.7,2492.8,0.8159]
[1727812790497,0.766,2493.7,2493.2,4.81306]
[1727812790741,10.39053,2493.7,2493.1,4.81315]
[1727812790906,5.57824,2493.7,2492.8,0.8159]
[1727812791109,4.81322,2493.2,2492.7,4.81392]
[1727812791445,4.8132,2493.2,2492.5,4.81428]
[1727812791624,5.62971,2493.1,2492.5,4.81428]
[1727812791825,4.81359,2493.0,2492.4,4.81458]
[1727812791996,4.81359,2493.0,2492.5,4.81442]
[1727812792202,0.8163,2493.1,2492.5,9.62866]
[1727812792203,5.62969,2493.1,2492.5,9.62866]
[1727812792423,0.8163,2493.1,2492.5,4.81432]
[1727812792614,5.62968,2493.1,2492.5,4.81432]
[1727812792810,5.62968,2493.1,2492.3,4.81471]
[1727812792811,0.8163,2493.1,2492.3,4.81471]
[1727812793042,0.8163,2493.1,2492.3,4.81482]
[1727812793043,9.62762,2492.9,2492.3,4.81482]
[1727812793335,5.62963,2493.1,2492.3,4.81471]
[1727812793537,5.62963,2493.1,2492.6,4.81411]
[1727812793538,0.8163,2493.1,2492.6,4.81411]
[1727812793698,10.44309,2493.1,2492.4,4.81447]
[1727812793895,10.44309,2493.1,2492.4,9.62899]
[1727812794102,5.62962,2493.1,2492.5,5.777299]
[1727812794297,0.8163,2493.1,2492.6,4.81413]
[1727812794602,0.8163,2493.1,2492.7,4.8139]
[1727812794836,4.81302,2493.3,2492.2,4.81498]
[1727812795014,4.81302,2493.3,2492.6,4.81419]
[1727812795015,4.81293,2493.3,2492.6,4.81419]
[1727812795223,4.81301,2493.3,2492.6,4.81412]
[1727812795734,4.81321,2493.2,2492.6,4.81412]
[1727812795939,4.81329,2493.1,2492.6,4.81412]
[1727812796146,4.81329,2493.1,2492.4,4.81451]
[1727812796147,4.81341,2493.1,2492.4,4.81451]
[1727812796301,4.81338,2493.1,2492.6,4.81414]
[1727812796502,9.62677,2493.1,2492.6,4.81414]
[1727812796705,4.81368,2492.9,2492.4,4.81452]
[1727812796914,4.8135,2493.0,2492.5,4.81444]
[1727812797212,0.7716,2493.4,2492.6,0.0802341]